Cogmind - Beta 13 @@@ ROGUE MODE // 2024.05.01 @ 23:48:45 Player: Conlarando Result: Self-destructed Performance ------------- Evolutions (2) 1000 Regions Visited (5) 1000 Robots Destroyed (114) 570 Value Destroyed (2161) 2161 Prototype IDs (7) 140 Alien Tech Used (0) 0 Bonus (78) 78 TOTAL SCORE: 4949 Bonus ------- High Alert Combat Kills 78 Cogmind --------- Core Integrity 498/550 Matter 20/300 Energy 160/160 System Corruption 0% Temperature Cool (0) Movement Treading (320) Ox2 Location -8/Materials Parts ------- > --- POWER (1) -------- Light Nuclear Core > --- PROPULSION (4) --- Light Treads Light Treads > --- UTILITY (4) ------ Huge Storage Unit Light Armor Plating > --- WEAPON (2) ------- Improved Assault Rifle Improved Assault Rifle > --- INVENTORY (25) --- Cooled Ion Engine Cooled Ion Engine Improved Hover Unit Improved Hover Unit Improved Hover Unit Flight Unit Flight Unit Improved Flight Unit Improved Flight Unit Small Storage Unit Signal Interpreter Hacking Suite Hacking Suite Hacking Suite Hacking Suite Improved Assault Rifle Improved Assault Rifle Rocket Launcher Makeshift Spear Peak State ------------ > --- POWER ------------ Improved Ion Engine > --- PROPULSION ------- Compact Wheel Compact Wheel > --- UTILITY ---------- Huge Storage Unit Experimental Sensor Array > --- WEAPON ----------- Heavy Assault Rifle Heavy Assault Rifle > --- INVENTORY -------- Ion Engine Improved Ion Engine Light Treads Wheel Hover Unit Flight Unit Flight Unit Small Storage Unit Core Shielding Core Shielding Light Armor Plating Light Armor Plating Light Armor Plating Hacking Suite Hacking Suite Advanced Beam Cannon Advanced Beam Cannon Grenade Launcher Grenade Launcher Makeshift Spear Proton Bomb Trap Proton Bomb Trap Proton Bomb Trap Proton Bomb Trap Proton Bomb Trap [Rating: 21] Favorites ----------- Power Improved Ion Engine Engine Improved Ion Engine Power Core Light Nuclear Core Propulsion Light Treads Treads Light Treads Wheel Compact Wheel Hover Unit Improved Hover Unit Utility Huge Storage Unit Device Experimental Sensor Array Storage Huge Storage Unit Processor Signal Interpreter Protection Core Shielding Weapon Heavy Assault Rifle Energy Gun EM Pulse Gun Energy Cannon Advanced Beam Cannon Ballistic Gun Heavy Assault Rifle Launcher Grenade Launcher Build | -11 -10 -10 -9 -9 -8 ------- Run | Yrd Mat Min Mat Sto Mat Slots Evolved 4 | . . . 2 . 2 Power . | . . . . . . Propulsion 2 | . . . 1 . 1 Utility 2 | . . . 1 . 1 Weapon . | . . . . . . Parts Attached 81 | 6 21 9 14 20 11 Power 5 | 1 2 . . 1 1 Engine 4 | 1 2 . . 1 . Core 1 | . . . . . 1 Reactor . | . . . . . . Propulsion 27 | 2 5 2 7 5 6 Treads 17 | 2 1 . 6 5 3 Leg . | . . . . . . Wheel 7 | . 4 2 1 . . Hover 3 | . . . . . 3 Flight . | . . . . . . Utility 14 | 1 3 3 3 4 . Device 1 | . . 1 . . . Storage 2 | 1 1 . . . . Processor 1 | . 1 . . . . Hackware . | . . . . . . Protection 10 | . 1 2 3 4 . Artifact . | . . . . . . Weapon 35 | 2 11 4 4 10 4 Energy Gun 7 | 2 2 . . 3 . Energy Cannon 4 | . 4 . . . . Ballistic Gun 13 | . 3 2 2 4 2 Ballistic Cannon . | . . . . . . Launcher 11 | . 2 2 2 3 2 Special Weapon . | . . . . . . Impact Weapon . | . . . . . . Slashing Weapon . | . . . . . . Piercing Weapon . | . . . . . . Special Melee Weapon . | . . . . . . Unidentified Prototypes 5 | . 1 1 . 3 . Parts Lost 22 | . 3 1 4 12 2 Power 3 | . 1 . . 2 . Propulsion 9 | . 1 1 1 5 1 Utility 7 | . . . 2 4 1 Weapon 3 | . 1 . 1 1 . Highest Loss Streak 6 | . 2 1 3 6 2 To Critical Strikes . | . . . . . . Average Slot Usage (%) 95 | . 96 99 95 94 66 Engine 11 | . 13 14 11 9 . Treads 18 | . 12 . 30 32 22 Wheel 10 | . 13 27 1 . . Storage 12 | . 14 14 11 11 9 Protection 15 | . 12 13 19 20 15 Energy Gun 1 | . 4 . . 2 . Energy Cannon 4 | . 14 . . . . Ballistic Gun 16 | . 8 23 20 17 16 Launcher 1 | . . 4 . . 1 Naked Turns . | . . . . . . Heaviest Build 103 | 12 96 96 100 103 97 Greatest Support 63 | 40 40 32 63 60 60 Greatest Overweight (x) 13 | 2 9 5 2 2 13 Average Overweight (x) 2 | . 3 2 1 1 1 Largest Inventory Capacity 25 | 8 25 25 25 25 25 Average Capacity 23 | 7 19 25 25 25 25 Most Carried 25 | 2 16 25 25 21 19 Average Carried 17 | 1 9 23 22 16 17 Final Capacity 25 | 8 25 25 25 25 25 Final Carried 25 | 2 16 25 21 15 19 Class Distribution -------------------- 89% | Mutant 10% | Scavenger-Mutant Dominant Class ---------------- Mutant | -10/Materials Mutant | -10/Mines Mutant | -9/Materials Mutant | -9/Storage Mutant | -8/Materials Resources | -11 -10 -10 -9 -9 -8 ----------- Run | Yrd Mat Min Mat Sto Mat Matter Collected 2040 | 243 388 207 609 433 160 Remotely . | . . . . . . Salvage Created 3271 | . 852 160 1103 928 228 Parts 229 | . 71 15 72 60 11 Haulers Intercepted 10 | . 2 . 4 4 . Recyclers Shooed 14 | . 2 1 5 5 1 Parts Field Recycled . | . . . . . . Retrieved Matter . | . . . . . . Parts Self-Destructed . | . . . . . . Prevented . | . . . . . . Kills | -11 -10 -10 -9 -9 -8 ------- Run | Yrd Mat Min Mat Sto Mat Combat Hostiles Destroyed 67 | . 17 8 22 14 6 Guns 33 | . 7 1 18 5 2 Cannons 7 | . 7 . . . . AOE 27 | . 3 7 4 9 4 Classes Destroyed 11 | . 8 . 2 . 1 Worker 5 | . . . 1 4 . Builder 10 | . 3 . 1 5 1 Tunneler 2 | . 1 1 . . . Hauler 10 | . 2 . 4 4 . Recycler 9 | . 2 1 4 2 . Operator 5 | . 2 . 1 1 1 Watcher 6 | . 3 . 2 1 . Swarmer 33 | . 9 6 14 4 . Grunt 20 | . 8 2 4 1 5 Brawler 1 | . . . . . 1 Sentry 13 | . . . 4 9 . Best Kill Streak 12 | . 5 5 5 12 3 Combat Bots Only 5 | . 3 3 5 4 3 Max Kills in Single Turn 3 | . 2 3 3 3 1 Gunslinging 1 | . 1 . 1 . . Exploded 3 | . 2 3 2 2 1 Melee . | . . . . . . Uniques/NPCs Destroyed . | . . . . . . Combat | -11 -10 -10 -9 -9 -8 -------- Run | Yrd Mat Min Mat Sto Mat Hostile Shots Fired 407 | . 106 14 117 137 33 Missed 99 | . 18 4 32 33 12 Damage Taken 3947 | . 793 214 1067 1451 422 Core 505 | . 106 58 141 148 52 Absorbed by Shields . | . . . . . . Redirected to Shielding 63 | . 21 . 21 21 . Regen/Repaired (Parts) 2 | . 2 . . . . Core Remaining (%) 53 | 100 . 34 . 27 . Volleys Fired 262 | . 81 11 82 64 24 Largest 2 | . 2 2 2 2 2 Hottest 136 | . 136 60 56 90 56 Shots Fired 463 | . 147 22 140 106 48 Gun 379 | . 98 14 135 92 40 Cannon 47 | . 47 . . . . Launcher 37 | . 2 8 5 14 8 Special . | . . . . . . Kinetic 331 | . 54 14 135 88 40 Thermal 47 | . 47 . . . . Explosive 37 | . 2 8 5 14 8 Electromagnetic 48 | . 44 . . 4 . Robot Hit Streak 11 | . 9 3 9 7 11 Robot Miss Streak 7 | . 7 3 3 3 3 Penetration Max . | . . . . . . Secondary Targets 4 | . 1 . 3 . . Max Gunslinging Chain 1 | . 1 . 1 . . Shots Hit Robots 264 | . 84 8 78 62 32 Core Hits 158 | . 35 13 46 48 16 Critical Kills . | . . . . . . Critical Parts Destroyed 1 | . 1 . . . . Critical Strikes 1 | . 1 . . . . Destroy 1 | . 1 . . . . Melee Attacks . | . . . . . . Impact . | . . . . . . Slashing . | . . . . . . Piercing . | . . . . . . Sneak Attacks . | . . . . . . Combat Hostiles . | . . . . . . Follow-up Attacks . | . . . . . . Damage Inflicted 6417 | . 1684 471 1343 1941 978 Guns 3370 | . 862 98 1136 833 441 Cannons 576 | . 576 . . . . Explosions 2451 | . 246 357 203 1108 537 Melee . | . . . . . . Ramming 20 | . . 16 4 . . Kinetic 2906 | . 447 98 1136 784 441 Thermal 734 | . 653 56 . 25 . Explosive 2293 | . 169 301 203 1083 537 Electromagnetic 464 | . 415 . . 49 . Impact . | . . . . . . Slashing . | . . . . . . Piercing . | . . . . . . Highest Corruption 2 | . . . 2 2 . Average Corruption 1 | . . . 1 2 . Corruption Purged . | . . . . . . Corruption Blocked . | . . . . . . Effects 26 | . . . 13 13 . Message Errors 6 | . . . 3 3 . Matter Fused 8 | . . . 4 4 . Heat Flow Errors 1 | . . . . 1 . Energy Discharges 3 | . . . 2 1 . Parts Rejected 1 | . . . . 1 . Parts Fused 1 | . . . 1 . . Data Loss (minor) 2 | . . . 1 1 . Data Loss (major) 1 | . . . . 1 . Alerts 3 | . . . 2 1 . Overload Shots . | . . . . . . Overflow Damage 82 | . 38 18 . 26 . Projectiles 38 | . 38 . . . . Explosions 44 | . . 18 . 26 . Melee . | . . . . . . Knockbacks . | . . . . . . Impact . | . . . . . . Kinetic . | . . . . . . Secondary . | . . . . . . Self-Inflicted Damage 331 | . . 122 55 114 40 Shots 9 | . . 3 2 3 1 Rammed 2 | . . 1 1 . . Targets Rammed 2 | . . 1 1 . . Kicked . | . . . . . . Crushed . | . . . . . . Highest Temperature 448 | . 448 36 21 178 14 Average Temperature 93 | . 135 15 8 26 4 Received Heat Transfer 1236 | . 198 9 210 576 243 Effects 6 | . 6 . . . . Shutdowns 1 | . 1 . . . . Energy Bleed 3 | . 3 . . . . Interference 1 | . 1 . . . . Short Circuit 1 | . 1 . . . . Siege Activations . | . . . . . . Robots Corrupted 1 | . 1 . . . . Combat Hostiles . | . . . . . . Parts Fried 4 | . 4 . . . . Impact Corruptions . | . . . . . . Robots Melted . | . . . . . . Combat Hostiles . | . . . . . . Parts Melted 2 | . 2 . . . . Heat Transferred 1236 | . 1136 50 . 50 . Parts Sabotaged . | . . . . . . Parts Stolen . | . . . . . . Parts Stripped . | . . . . . . Power Chain Reactions 2 | . 1 . . 1 . Alert | -11 -10 -10 -9 -9 -8 ------- Run | Yrd Mat Min Mat Sto Mat Peak Influence 576 | . 217 361 257 576 444 Initial 234 | . . . . 94 234 Average 140 | . 58 103 152 359 333 Maximum Alert Level 2 | . 1 1 1 2 2 Low Security (%) 73 | 100 97 84 71 10 . Level 1 21 | . 2 15 28 43 78 Level 2 5 | . . . . 45 21 Level 3 . | . . . . . . Level 4 . | . . . . . . Level 5 . | . . . . . . High Security . | . . . . . . Max Security . | . . . . . . Squads Dispatched 8 | . 3 . 2 2 1 Investigation 4 | . 2 . 1 . 1 Extermination . | . . . . . . Reinforcement 2 | . 1 . 1 . . Assault . | . . . . . . Garrison 2 | . . . . 2 . Intercept . | . . . . . . Searches Triggered . | . . . . . . Construction Impeded . | . . . . . . Haulers Reinforced . | . . . . . . Active Scanning Responses . | . . . . . . Cargo Convoy Interrupts . | . . . . . . Stealth | -11 -10 -10 -9 -9 -8 --------- Run | Yrd Mat Min Mat Sto Mat Distress Signals 3 | . . . . 2 1 Communications Jammed . | . . . . . . Distress Signals . | . . . . . . Times Spotted 105 | . 27 8 35 23 12 Peak Tracking Total 10 | . 4 3 6 10 7 Tactical Retreats 7 | . 1 1 3 2 . Traps | -11 -10 -10 -9 -9 -8 ------- Run | Yrd Mat Min Mat Sto Mat Traps Triggered 7 | . 3 . 4 . . Indirectly . | . . . . . . Trap Hack Attempts . | . . . . . . Triggered . | . . . . . . Disarmed . | . . . . . . Reprogrammed . | . . . . . . Reused 5 | . . . 4 1 . Traps Extracted . | . . . . . . Installed 5 | . . . 4 1 . Triggered 5 | . . . 4 1 . Most Traps Carried 5 | . . 5 5 1 . Machines | -11 -10 -10 -9 -9 -8 ---------- Run | Yrd Mat Min Mat Sto Mat Machines Disabled 13 | . . 7 1 4 1 Max in Single Turn 6 | . . 6 1 3 1 Garrison Access 2 | . . . . 1 1 Machines Repaired . | . . . . . . Machines Dismantled . | . . . . . . Machines Sabotaged . | . . . . . . Overloaded Fab Kills . | . . . . . . Hacking | -11 -10 -10 -9 -9 -8 --------- Run | Yrd Mat Min Mat Sto Mat Machines Accessed 16 | . 4 . 5 5 2 Terminals 6 | . 1 . 2 3 . Fabricators . | . . . . . . Repair Stations 1 | . 1 . . . . Recycling Units 5 | . 2 . 1 1 1 Scanalyzers 2 | . . . 2 . . Garrison Access 2 | . . . . 1 1 Total Hacks 51 | . 12 . 20 14 5 Successful 34 | . 8 . 16 8 2 Failed 17 | . 4 . 4 6 3 Catastrophic 1 | . 1 . . . . Database Lockouts . | . . . . . . Manual 5 | . 1 . 1 3 . Terminals 16 | . 3 . 3 10 . Fabricators . | . . . . . . Repair Stations 3 | . 3 . . . . Recycling Units 12 | . 6 . 2 1 3 Scanalyzers 15 | . . . 15 . . Garrison Access 5 | . . . . 3 2 Terminal Hacks 11 | . 2 . 3 6 . Part Schematic 1 | . . . . 1 . Prototype ID Bank 1 | . . . 1 . . Open Door 1 | . . . . 1 . Branch Access Points 2 | . 1 . 1 . . Terminal Index 1 | . . . . 1 . Scanalyzer Index 1 | . . . 1 . . Locate Traps 1 | . . . . 1 . Hauler Manifests 1 | . . . . 1 . Zone Layout 2 | . 1 . . 1 . Fabricator Hacks . | . . . . . . Repair Station Hacks 2 | . 2 . . . . Scan Component 1 | . 1 . . . . Repair 1 | . 1 . . . . Recycling Unit Hacks 7 | . 4 . 1 1 1 Report Inventory 6 | . 4 . 1 1 . Retrieve Components 1 | . . . . . 1 Scanalyzer 12 | . . . 12 . . Insert Component 6 | . . . 6 . . Analyze 6 | . . . 6 . . Garrison Access Hacks 2 | . . . . 1 1 Seal Access 2 | . . . . 1 1 Unauthorized Hacks . | . . . . . . Terminals . | . . . . . . Fabricators . | . . . . . . Repair Stations . | . . . . . . Recycling Units . | . . . . . . Scanalyzers . | . . . . . . Garrison Access . | . . . . . . Data Cores Recovered 1 | . 1 . . . . Used . | . . . . . . Hacking Detections 14 | . 3 . 4 5 2 Full Trace Events 1 | . . . . . 1 Feedback Events . | . . . . . . Feedback Blocked . | . . . . . . Robot Schematics Acquired . | . . . . . . Robots Built . | . . . . . . Authchips . | . . . . . . Time . | . . . . . . Total Robot Build Rating . | . . . . . . Part Schematics Acquired 6 | . . . 5 1 . Parts Built . | . . . . . . Authchips . | . . . . . . Time . | . . . . . . Total Part Build Rating . | . . . . . . Parts Repaired 1 | . 1 . . . . Time 38 | . 38 . . . . Parts Recycled . | . . . . . . Recycled Matter . | . . . . . . Retrieved Matter . | . . . . . . Retrieved Components 4 | . . . . . 4 Parts Scanalyzed 6 | . . . 6 . . Part Schematics Acquired 5 | . . . 5 . . Parts Damaged 1 | . . . 1 . . Bothacking | -11 -10 -10 -9 -9 -8 ------------ Run | Yrd Mat Min Mat Sto Mat Used RIF Installer . | . . . . . . Robots Hacked . | . . . . . . Non-combat . | . . . . . . Combat . | . . . . . . Robot Hacks Applied . | . . . . . . Relay Couplers Released . | . . . . . . Fabnet Peak Effective % . | . . . . . . Robots Rewired . | . . . . . . Allies Hacked . | . . . . . . Hacks Repelled . | . . . . . . Allies | -11 -10 -10 -9 -9 -8 -------- Run | Yrd Mat Min Mat Sto Mat Total Allies 1 | . . 1 . . . Largest Group 1 | . . 1 1 . . Highest-Rated Group 31 | . . 31 31 . . Highest-Rated Ally 31 | . . 31 31 . . Total Orders . | . . . . . . Ally Attacks 4 | . . . 4 . . Total Damage 20 | . . . 20 . . Kills . | . . . . . . Allies Corrupted . | . . . . . . Allies Melted . | . . . . . . Intel | -11 -10 -10 -9 -9 -8 ------- Run | Yrd Mat Min Mat Sto Mat Robot Analysis Total . | . . . . . . Derelict Logs Recovered 1 | . . 1 . . . Drone Launches . | . . . . . . Drone Recoveries . | . . . . . . Exploration | -11 -10 -10 -9 -9 -8 ------------- Run | Yrd Mat Min Mat Sto Mat Turns Passed 8002 | 77 2484 1661 2611 790 379 Spaces Moved 3631 | 45 1207 1134 897 244 104 Core 12 | 12 . . . . . Treads 1601 | 33 332 . 891 244 101 Legs . | . . . . . . Wheels 2015 | . 875 1134 6 . . Hover 3 | . . . . . 3 Flight . | . . . . . . Fastest Speed 50 | 50 135 130 123 240 240 Average Speed 185 | 149 170 130 251 240 270 Slowest Speed 860 | 160 480 175 320 320 860 Overloaded Moves . | . . . . . . Propulsion Burnouts . | . . . . . . Robots Hopped . | . . . . . . Cave-ins Triggered . | . . . . . . Exploration Rate (%) 56 | 5 100 100 69 48 17 Regions Visited 5 Branch Regions 2 Pre-discovered Areas 1 | . . 1 . . . Known Exits Taken 2 | . 1 . 1 . . Unknown Exits Taken 3 | 1 . 1 . 1 . Scrap Searched 1 | . . 1 . . . Spaces Dug . | . . . . . . Terrain Destroyed 275 | . 14 74 31 101 55 Melee . | . . . . . . Projectile . | . . . . . . AOE 275 | . 14 74 31 101 55 Terrain Rammed . | . . . . . . Walls Destroyed . | . . . . . . Machines Disabled . | . . . . . . Actions | -11 -10 -10 -9 -9 -8 --------- Run | Yrd Mat Min Mat Sto Mat Total 4434 | 52 1485 1284 1116 346 151 Wait 360 | . 143 120 89 5 3 Move 3626 | 44 1206 1133 896 243 104 Hop . | . . . . . . Pick Up 54 | 2 22 9 12 6 3 Fast Attach 35 | 6 8 1 7 6 7 Attach 19 | . 2 . 5 12 . Detach 3 | . . . 1 1 1 Swap 27 | . 11 8 2 2 4 Drop 41 | . 12 1 17 6 5 Fire 262 | . 81 11 82 64 24 Melee . | . . . . . . Ram 1 | . . 1 . . . Kick . | . . . . . . Crush 1 | . . . 1 . . Escape Stasis . | . . . . . . Rewire . | . . . . . . Trap 5 | . . . 4 1 . Miscellaneous . | . . . . . . Route ------- -11/Scrapyard -10/Materials (discovered 4 exits: *Mat x3 / *Min) -10/Mines (discovered 3 exits: *Mat x2 / [*Sub]) -9/Materials (discovered 4 exits: *Mat x2 / Min / *Sto) -9/Storage -8/Materials History --------- Turn | Location | Event 31 | -11/Scrapyard | Discovered new exit (range 14) 78 | -11/Scrapyard | Entered Materials 300 | -10/Materials | Build established: Mutant 322 | -10/Materials | Identified exit to Mines 439 | -10/Materials | Discovered new exit (range 15) 1310 | -10/Materials | Discovered new exit (range 13) 1518 | -10/Materials | Repaired Hacking Suite 1746 | -10/Materials | Discovered new exit (range 15) 2562 | -10/Materials | Entered Mines 2572 | -10/Mines | Core integrity fell below 50% 2587 | -10/Mines | Met a Derelict bent on vengeance 2621 | -10/Mines | Found a damaged Exp. Sensor Array with a note attached 2624 | -10/Mines | Found Prototype Device 2653 | -10/Mines | Discovered new exit (range 9) 2682 | -10/Mines | Learned location of Mines (-8) 2847 | -10/Mines | Found a hidden stash of uninstalled traps 2935 | -10/Mines | A weapon hastily lodged in a ceiling crevice suddenly fell to the ground 3031 | -10/Mines | Discovered new exit (range 5) 3120 | -10/Mines | Discovered new exit (range 8) 3391 | -10/Mines | Identified Exp. Sensor Array 3803 | -10/Mines | Escorted by a lone wolf Derelict 4223 | -10/Mines | Entered Materials 4223 | -9/Materials | Accompanied by 1 ally 4223 | -9/Materials | Evolved 2 slots: Propulsion x1, Utility x1 4246 | -9/Materials | Identified exit to Mines 4246 | -9/Materials | Identified exit to Storage 5136 | -9/Materials | Discovered new exit (range 4) 6004 | -9/Materials | Discovered new exit (range 16) 6143 | -9/Materials | Lost 3 parts (1n1u1w) 6550 | -9/Materials | Build established: Scavenger-Mutant 6834 | -9/Materials | Entered Storage 6968 | -9/Storage | Lost 6 parts (1p2n2u1w) 7057 | -9/Storage | Core integrity fell below 50% 7418 | -9/Storage | Build established: Mutant 7589 | -9/Storage | Discovered new exit (range 14) 7624 | -9/Storage | Entered Materials 7624 | -8/Materials | Evolved 2 slots: Propulsion x1, Utility x1 8003 | -8/Materials | Self-destructed Last Messages --------------- Processor. 07942_ Acquired 20 matter. 07943_ R-06 Scavenger collects Wheel. 07945_ K-01 Serf collects debris. 07946_ U-05 Engineer lays Concrete. 07947_ R-06 Scavenger collects Wheel. 07948_ U-05 Engineer lays Concrete. 07949_ U-05 Engineer builds a Wall. 07951_ K-01 Serf collects debris. 07963_ K-01 Serf cleans the Recycling Unit. 07979_ Connecting with Recycling Unit... >>Retrieve(Components) Retrieving 4 components... Rnf. Ion Engine Lgt. Nuclear Core Particle Gun Lgt. Ion Engine 07979_ ALERT: Suspicious activity at Recycling Unit M001. Dispatching Investigation squad. 07983_ Acquired Lgt. Nuclear Core. Map ----- +----------------------------------------------------+ | ?????????????????????????????????????????????????? | | ?????????????????????????????????????????????????? | | ?????????????????????????????????????????????????? | | ?????????????????????????????????????????######### | | ?????????????????????????????????????????#% | | ??????????????????????? ??# ?????????????# | | ??????????????????????# ??# ?????????????# """ | | ??????????????????????# ? ? ???????????# """"" | | ??????????????????????# ?+ """"????????#???""""" | | ??????????????????????# ?# """"????????????""""" | | ??????????????????????# ?# """"???????????? """ | | ??????????????????????# # """????????# | | ??????????????????????# # ##????????######## | | ??????????????????????# # ###################### | | ??????????????????????# #### | | ??????????????????????# | | ??????????????????????# | | | ???????????????????"" + #######+######### | | ?????????????????? # ** ###?# #????? | | ??????????????????????# [ ""#?# [!#????? | | ??????????? ####### "Y" T"#?# [!#????? | | ??????????? """ ""#?#[ #????? | | ??????????? ###?# ! #????? | | ??????????? #???# #????? | | ??????????? ! ##########+### #???########????? | | ????????????????????# @ # #???????????????? | | ????????????????????# # #???????????????? | | ????????????????????# # #???????????????? | | ????????????????????# [ k # #???????????????? | | ????????????????????# + /???????????????? | | ????????????????????# # # ??????????????? | | ????????????????????# ### # ??????????????? | | ????????????????????# #?? #?#?????????????? | | ????????????????????###/######?? ????????????????? | | ?????????????????????? ?????????????????????????? | | ??????????????????????gg?????????????????????????? | | ?????????????????????"" ?????????????????????????? | | ?????????????????????"" ?????????????????????????? | | ??????????????????????" ?????????????????????????? | | ?????????????????????? ??????????????????????????? | | ?????????????????????????????????????????????????? | | ?????????????????????????????????????????????????? | | ?????????????????????????????????????????????????? | | ?????????????????????????????????????????????????? | | ?????????????????????????????????????????????????? | | ?????????????????????????????????????????????????? | | ?????????????????????????????????????????????????? | | ?????????????????????????????????????????????????? | | ?????????????????????????????????????????????????? | | ?????????????????????????????????????????????????? | +----------------------------------------------------+ Best States ------------- Heat Dissipation 31 Energy Generation 14 Energy Capacity 265 Matter Stores 300 Matter Capacity 300 Sight Range 16 Robot Scan Range 20 Terrain Scan Density 10 Armor Coverage 375 Core Shielding 20 Evasion (%) 40 Recoil Reduction 3 Item Schematics ----------------- Hacking Suite | -9/Materials | Scanalyzed Lgt. Armor Plating | -9/Materials | Scanalyzed Cld. Ion Engine | -9/Materials | Scanalyzed Core Shielding | -9/Materials | Scanalyzed Flight Unit | -9/Materials | Scanalyzed Powered Hammer | -9/Storage | Hacked Robot Schematics ------------------ None Fabricated ------------ Nothing Alien Tech Used ----------------- None Achievements -------------- None Challenges ------------ None Game ------ Seed SensorDimensionalAmplifier Manual? 0 Play Time 00:42:53 Cumulative 14.3 hours Start 2024.05.01 @ 15:39:43 End 2024.05.01 @ 23:48:45 Sessions 3 Manual Loads 0 Difficulty Rogue Special Mode None Game No. 24 Rogue 24 Adventurer 0 Explorer 0 Win Type - Total 0 Types 0/0/0/0/0/0/0/0/0 Lore% 6 Gallery% 20 Achievement% 20 Wizard Run 0 Options --------- Layout 1 ASCII 0 Keyboard 0 Movement Mouse Keybinds 0 Fullscreen 1 Font 24/Terminus Map View 50x35 Zoom Use 0% Tactical HUD 1 Map Filters NONE Filters NONE Steam 1 RUN: e865999b-c4f0-450b-9326-129f080711c2